fUST/lending_fUST_20251113
["ID","MTS","AMOUNT","RATE_DAILY","PERIOD"]
[393802715,1763004648775,-154.0,0.00042,120]
[393802716,1763004648784,-300.0,0.00042,120]
[393802717,1763004648794,-5921.79162125,0.00042085,28]
[393802718,1763004648803,-8135.37188343,0.00042245,2]
[393802719,1763004648813,-281.0,0.000424,19]
[393802720,1763004648822,-324.962441,0.000424,120]
[393802721,1763004648832,-324.962441,0.000424,120]
[393802722,1763004648841,-324.962441,0.000424,120]
[393802723,1763004648851,-324.962441,0.000424,120]
[393802724,1763004648861,-580.008646,0.000424,28]
[393802725,1763004648870,-580.008646,0.000424,28]
[393802726,1763004648880,-580.008646,0.000424,28]
[393802727,1763004648892,-580.008646,0.000424,28]
[393802728,1763004648902,-2000.0,0.00042448,21]
[393802729,1763004648912,-202.60773548,0.0004278,2]
[393802730,1763004648922,-2932.0712832,0.00043,60]
[393802731,1763004648932,-160.702857,0.000432,31]
[393802732,1763004648946,-1526.7155,0.0004322,30]
[393802733,1763004648957,-300.0,0.00043726,30]
[393802734,1763004648966,-1000.0,0.000438,90]
[393802735,1763004648976,-300.0,0.00044,120]
[393802736,1763004648987,-10000.0,0.00044,120]
[393802737,1763004648997,-346.820652,0.00044,120]
[393802738,1763004649007,-346.820652,0.00044,120]
[393802739,1763004649017,-346.820652,0.00044,120]
[393802740,1763004649027,-346.820652,0.00044,120]
[393802741,1763004649038,-154.0,0.000443,120]
[393802742,1763004649047,-1000.0,0.00044899,90]
[393802743,1763004649056,-1189.39,0.000449,14]
[393802744,1763004649066,-2000.0,0.00044955,21]
[393802745,1763004649076,-787.60083,0.00045,120]
[393802746,1763004649085,-597.0,0.00045,2]
[393802747,1763004649095,-157.85172897,0.00045,120]
[393802748,1763004649105,-209.89372342,0.00045,120]
[393802749,1763004649115,-221.85566631,0.00045,120]
[393802750,1763004649125,-150.0,0.00045,120]
[393802751,1763004649137,-181.28387,0.00045205,120]
[393802752,1763004649147,-283.07126103,0.000459,120]
[393802753,1763004649157,-3126.43,0.000459,14]
[393802754,1763004649167,-300.0,0.00046,120]
[393802755,1763004649177,-6200.0,0.00046,120]
[393802756,1763004649186,-160.702857,0.00046011,20]
[393802757,1763004649197,-300.56,0.00046466,60]
[393802758,1763004649206,-157.64,0.000465,14]
[393802759,1763004649216,-154.0,0.000467,120]
[393802760,1763004649226,-266848.15693606,0.00047,10]
[393802785,1763005535112,2131.07982729,0.00036987,60]
[393802790,1763005764254,-150.0,0.00031018,2]
[393802791,1763005779941,150.0,0.00031213,2]
[393802835,1763005832299,-253.95,0.00032578,2]
[393802937,1763005840165,-4187.39371599,0.00032578,2]
[393802938,1763005840175,-17509.09467261,0.00032675,2]
[393802939,1763005840185,-500.0,0.00032678,2]
[393802940,1763005840194,-500.0,0.00032678,2]
[393802941,1763005840204,-213.18876178,0.00032678,2]
[393802942,1763005840214,-500.0,0.00032678,2]
[393802943,1763005840224,-500.0,0.00032678,2]
[393802944,1763005840234,-500.0,0.00032678,2]
[393802945,1763005840244,-500.0,0.00032678,2]
[393802946,1763005840255,-500.0,0.00032678,2]
[393802947,1763005840264,-500.0,0.00032678,2]
[393802948,1763005840274,-500.0,0.00032678,2]
[393802949,1763005840283,-500.0,0.00032678,2]
[393802950,1763005840293,-500.0,0.00032678,2]
[393802951,1763005840304,-46608.9834376,0.00032679,2]
[393802952,1763005840315,-150.0,0.00032699,2]
[393802953,1763005840324,-500.0,0.00032783,2]
[393802954,1763005840334,-572.08335354,0.00032838,2]
[393802955,1763005840343,-167.365684,0.00032884,2]
[393802956,1763005840363,-180.6249085,0.00032886,2]
[393802957,1763005840381,-797.72195534,0.0003399,2]
[393802958,1763005840392,-150.0,0.00034186,2]
[393802959,1763005840401,-2711.79062781,0.00034873,2]
[393802960,1763005840411,-398.7,0.00034937,3]
[393802961,1763005840420,-4685.26992577,0.00034947,2]
[393802990,1763005846495,-797.32,0.00034937,3]
[393802991,1763005846504,-2760.79677753,0.00034947,2]
[393802992,1763005846515,-5141.25340916,0.00034947,2]
[393802993,1763005846526,-1698.92705309,0.00034947,2]
[393802994,1763005846537,-10795.56837991,0.00034947,2]
[393802995,1763005846652,-81595.4679642,0.00034947,2]
[393803006,1763006578218,1999999.00000018,0.00036992,20]
[393803009,1763006699058,388.35237,0.00036992,120]
[393803010,1763006787098,2110.13,0.0002,2]
[393803011,1763006818117,-212.987624,0.00031587,2]
[393803012,1763006818139,-30.45373175,0.00032666,2]
[393803016,1763007024832,273.741355,0.00025205,2]
[393803140,1763007032212,-490.044002,0.00032566,2]
[393803175,1763007032321,-691.93912146,0.00032566,2]
[393803337,1763007038263,-151.0,0.00032838,2]
[393803338,1763007038274,-213.24079485,0.0003315,14]
[393803339,1763007038284,-300.0,0.00033326,30]
[393803340,1763007038294,-300.0,0.00033326,30]
[393803341,1763007038304,-300.0,0.00033326,30]
[393803342,1763007038314,-300.0,0.00033326,30]
[393803344,1763007038324,-300.0,0.00033326,30]
[393803345,1763007038334,-300.0,0.00033326,30]
[393803346,1763007038343,-300.0,0.00033326,30]
[393803347,1763007038353,-242.0759338,0.00033326,30]
[393803348,1763007038366,-57.9240662,0.00033326,30]
[393803349,1763007038376,-300.0,0.00033326,30]
[393803350,1763007038386,-300.0,0.00033326,30]
[393803351,1763007038396,-300.0,0.00033326,30]
[393803352,1763007038406,-169.3609818,0.00033326,30]
[393803353,1763007038417,-130.6390182,0.00033326,30]
[393803354,1763007038427,-300.0,0.00033326,30]
[393803355,1763007038438,-300.0,0.00033326,30]
[393803356,1763007038447,-300.0,0.00033326,30]
[393803357,1763007038457,-600.0,0.00033326,30]
[393803358,1763007038466,-1807.86041854,0.00034773,2]
[393803359,1763007038476,-1000.0,0.000348,10]
[393803360,1763007038486,-210.94400195,0.00034846,7]
[393803361,1763007038495,-500.0,0.00034846,7]
[393803362,1763007038505,-500.0,0.00034846,7]
[393803363,1763007038515,-500.0,0.00034846,7]
[393803364,1763007038524,-500.0,0.00034846,7]
[393803365,1763007038534,-500.0,0.00034846,7]
[393803366,1763007038544,-500.0,0.00034846,7]
[393803367,1763007038553,-500.0,0.00034846,7]
[393803368,1763007038563,-612.48329469,0.00034846,7]
[393803369,1763007038573,-500.0,0.00034846,7]
[393803370,1763007038583,-500.0,0.00034846,7]
[393803371,1763007038593,-500.0,0.00034846,7]
[393803372,1763007038603,-7435.86106068,0.00034847,2]
[393803373,1763007038615,-512.3,0.00034847,2]
[393803374,1763007038631,-1069.39056157,0.00034847,2]
[393803384,1763007040385,-267.0,0.00032664,2]
[393803385,1763007040396,-233.0,0.00032664,2]
[393803386,1763007040405,-500.0,0.00032664,2]
[393803387,1763007040414,-500.0,0.00032664,2]
[393803388,1763007040424,-500.0,0.00032664,2]
[393803389,1763007040433,-500.0,0.00032664,2]
[393803390,1763007040443,-500.0,0.00032664,2]
[393803391,1763007040452,-500.0,0.00032664,2]
[393803392,1763007040461,-500.0,0.00032664,2]
[393803393,1763007040471,-500.0,0.00032664,2]
[393803394,1763007040480,-500.0,0.00032664,2]
[393803395,1763007040489,-500.0,0.00032664,2]
[393803396,1763007040499,-500.0,0.00032664,2]
[393803397,1763007040510,-500.0,0.00032664,2]
[393803398,1763007040519,-500.0,0.00032664,2]
[393803399,1763007040529,-500.0,0.00032664,2]
[393803400,1763007040538,-5091.67896678,0.00034847,2]
[393803413,1763007046468,-500.0,0.00032664,2]
[393803414,1763007046478,-500.0,0.00032664,2]
[393803415,1763007046487,-500.0,0.00032664,2]
[393803416,1763007046496,-500.0,0.00032664,2]
[393803417,1763007046505,-500.0,0.00032664,2]
[393803418,1763007046515,-500.0,0.00032664,2]
[393803419,1763007046524,-500.0,0.00032664,2]
[393803420,1763007046533,-500.0,0.00032664,2]
[393803421,1763007046543,-500.0,0.00032664,2]
[393803422,1763007046552,-500.0,0.00032664,2]
[393803423,1763007046562,-500.0,0.00032664,2]
[393803424,1763007046571,-367.90811494,0.00032664,2]
[393803425,1763007046580,-500.0,0.00032664,2]
[393803426,1763007046591,-500.0,0.00032664,2]
[393803427,1763007046600,-500.0,0.00032664,2]
[393803428,1763007046610,-500.0,0.00032664,2]
[393803429,1763007046619,-500.0,0.00032664,2]
[393803430,1763007046628,-500.0,0.00032664,2]
[393803431,1763007046637,-500.0,0.00032664,2]
[393803432,1763007046647,-500.0,0.00032664,2]
[393803433,1763007046656,-500.0,0.00032664,2]
[393803434,1763007046666,-500.0,0.00032664,2]
[393803435,1763007046675,-500.0,0.00032664,2]
[393803436,1763007046685,-263.11391589,0.00032664,2]
[393803437,1763007046698,-500.0,0.00032664,2]
[393803438,1763007046709,-500.0,0.00032664,2]
[393803439,1763007046717,-500.0,0.00032664,2]
[393803440,1763007046725,-500.0,0.00032664,2]
[393803441,1763007046736,-500.0,0.00032664,2]
[393803442,1763007046745,-21.59165713,0.00032664,2]
[393803443,1763007046757,-478.40834287,0.00032664,2]
[393803444,1763007046768,-412.74304495,0.00032664,2]
[393803445,1763007046778,-500.0,0.00032664,2]
[393803446,1763007046787,-18968.84861219,0.00034847,2]
[393803449,1763007195289,86112.65935267,0.00036992,30]
[393803450,1763007365751,339.8709238,0.00036993,20]
[393803451,1763007450734,1927.88370263,0.00036993,120]
[393803455,1763007785684,165.540225,0.00013699,2]
[393803478,1763008016322,300.0,0.000137,2]
[393803479,1763008017707,-165.540225,0.00023973,2]
[393803480,1763008017730,-254.04534677,0.00030227,2]
[393803481,1763008017757,-329.94998855,0.00033316,30]
[393803482,1763008028177,300.0,0.000137,2]
[393803483,1763008040116,300.0,0.000137,2]
[393803485,1763008071285,500.0,0.00036993,20]
[393803486,1763008076723,500.0,0.00036993,20]
[393803487,1763008079998,158.99407719,0.000137,2]
[393803490,1763008107145,12614.14534193,0.00017,2]
[393803491,1763008107175,8011.67028543,0.00017,2]
[393803493,1763008110087,2458.75165971,0.00015,2]
[393803526,1763008159103,-500.0,0.00029999,2]
[393803527,1763008159123,-500.0,0.00029999,2]
[393803528,1763008159142,-500.0,0.00029999,2]
[393803529,1763008159161,-428.73830629,0.00029999,2]
[393803530,1763008159181,-500.0,0.00029999,2]
[393803531,1763008159201,-500.0,0.00029999,2]
[393803532,1763008159220,-500.0,0.00029999,2]
[393803533,1763008159239,-500.0,0.00029999,2]
[393803534,1763008159263,-500.0,0.00029999,2]
[393803535,1763008159286,-500.0,0.00029999,2]
[393803536,1763008159307,-418.12376843,0.00029999,2]
[393803537,1763008159331,-500.0,0.00029999,2]
[393803538,1763008159355,-500.0,0.00029999,2]
[393803539,1763008159375,-500.0,0.00029999,2]
[393803540,1763008159398,-500.0,0.00029999,2]
[393803541,1763008159417,-500.0,0.00029999,2]
[393803542,1763008159441,-500.0,0.00029999,2]
[393803543,1763008159460,-500.0,0.00029999,2]
[393803544,1763008159483,-500.0,0.00029999,2]
[393803545,1763008159502,-500.0,0.00029999,2]
[393803546,1763008159522,-438.08469309,0.00029999,2]
[393803547,1763008159543,-263.10090166,0.00029999,2]
[393803548,1763008159562,-500.0,0.00029999,2]
[393803549,1763008159732,-500.0,0.00029999,2]
[393803550,1763008159754,-500.0,0.00029999,2]
[393803551,1763008159775,-500.0,0.00029999,2]
[393803552,1763008159796,-500.0,0.00029999,2]
[393803553,1763008159820,-500.0,0.00029999,2]
[393803554,1763008159841,-500.0,0.00029999,2]
[393803555,1763008159860,-101.74897053,0.00029999,2]
[393803604,1763008232433,-398.25102947,0.00029999,2]
[393803605,1763008232443,-430.65433465,0.00029999,2]
[393803606,1763008232458,-69.34566535,0.00029999,2]
[393803607,1763008232468,-500.0,0.00029999,2]
[393803608,1763008232477,-500.0,0.00029999,2]
[393803609,1763008232487,-379.19367166,0.00029999,2]
[393803610,1763008232496,-500.0,0.00029999,2]
[393803611,1763008232506,-500.0,0.00029999,2]
[393803612,1763008232516,-500.0,0.00029999,2]
[393803613,1763008232525,-500.0,0.00029999,2]
[393803614,1763008232535,-500.0,0.00029999,2]
[393803615,1763008232546,-500.0,0.00029999,2]
[393803616,1763008232555,-500.0,0.00029999,2]
[393803617,1763008232565,-500.0,0.00029999,2]
[393803618,1763008232574,-500.0,0.00029999,2]
[393803619,1763008232583,-500.0,0.00029999,2]
[393803620,1763008232592,-500.0,0.00029999,2]
[393803621,1763008232602,-500.0,0.00029999,2]
[393803622,1763008232611,-388.64565137,0.00029999,2]
[393803623,1763008232620,-500.0,0.00029999,2]
[393803625,1763008232630,-500.0,0.00029999,2]
[393803627,1763008232640,-500.0,0.00029999,2]
[393803629,1763008232649,-500.0,0.00029999,2]
[393803630,1763008232659,-500.0,0.00029999,2]
[393803631,1763008232668,-478.64928029,0.00029999,2]
[393803640,1763008238288,-21.35071971,0.00029999,2]
[393803641,1763008238299,-500.0,0.00029999,2]
[393803642,1763008238308,-500.0,0.00029999,2]
[393803643,1763008238319,-500.0,0.00029999,2]
[393803644,1763008238329,-500.0,0.00029999,2]
[393803645,1763008238339,-500.0,0.00029999,2]
[393803646,1763008238348,-161.18618415,0.00029999,2]
[393803647,1763008238362,-338.81381585,0.00029999,2]
[393803648,1763008238372,-500.0,0.00029999,2]
[393803649,1763008238381,-282.95257398,0.00029999,2]
[393803650,1763008238391,-500.0,0.00029999,2]
[393803651,1763008238400,-500.0,0.00029999,2]
[393803652,1763008238410,-500.0,0.00029999,2]
[393803653,1763008238419,-500.0,0.00029999,2]
[393803654,1763008238429,-500.0,0.00029999,2]
[393803655,1763008238439,-4401.79933298,0.0003,30]
[393803678,1763008243587,-91422.29166272,0.0003,30]
[393803680,1763008243596,-302.7,0.0003,7]
[393803682,1763008243605,-270.05001145,0.00033316,30]
[393803684,1763008243615,-2277.02952051,0.000335,2]
[393803686,1763008243624,-501.56783176,0.00033692,5]
[393803688,1763008243633,-579.4918287,0.00033785,2]
[393803690,1763008243643,-1453.7860321,0.00033785,2]
[393803692,1763008243652,-165.540225,0.00034247,2]
[393803694,1763008243661,-400.28388004,0.00034624,2]
[393803697,1763008243670,-183.554,0.00034673,39]
[393803700,1763008243679,-1205.24027904,0.00034673,2]
[393803703,1763008243688,-209.40437684,0.00034726,2]
[393803705,1763008243697,-2879.06035166,0.00034747,2]
[393804567,1763008393717,206.04289941,0.00036993,20]
[393804569,1763008446001,450.65076237,0.0003,120]
[393804571,1763008602700,684.12479975,0.0003699,20]
[393804575,1763008706658,-202.60773549,0.00020643,2]
[393804576,1763008706681,-176.0696009,0.00021784,2]
[393804577,1763008751612,-55.26554784,0.00021784,2]
[393804578,1763008751632,-106.73445216,0.000218,2]
[393804579,1763008754182,-235.79722536,0.000218,2]
[393804580,1763008964029,8812.4406,0.00036992,30]
[393804581,1763009211113,-157.46832248,0.000218,2]
[393804582,1763009211134,-563.92299602,0.00025,2]
[393804583,1763009211159,-192.80227211,0.00028403,2]
[393804584,1763009211180,-346.6970457,0.00028403,2]
[393804585,1763009211203,-351.03105706,0.00029898,2]
[393804586,1763009211228,-150.0,0.00030794,2]
[393804587,1763009211251,-182.87881256,0.0003277,2]
[393804588,1763009211273,-214.06813016,0.000329,120]
[393804589,1763009211295,-157.7400875,0.00033897,120]
[393804590,1763009211315,-753.34528754,0.00033997,3]
[393804633,1763009438461,-2044.97081546,0.00033245,2]
[393804641,1763009444660,-341.10600124,0.00033245,2]
[393804648,1763009446903,-246.8340888,0.00033245,2]
[393804649,1763009446913,-447.0,0.00034005,3]
[393804650,1763009446922,-159.281562,0.00034006,2]
[393804651,1763009446931,-287.0,0.00034626,3]
[393804652,1763009446940,-400.0,0.00034626,2]
[393804653,1763009446950,-209.40437684,0.00034626,2]
[393804654,1763009446959,-2154.94952056,0.00034627,2]
[393804655,1763009446968,-930.81,0.00034637,10]
[393804656,1763009446977,-500.0,0.00034646,7]
[393804657,1763009446987,-500.0,0.00034646,7]
[393804658,1763009446996,-178.73830629,0.00034646,7]
[393804659,1763009447005,-500.0,0.00034646,7]
[393804660,1763009447014,-500.0,0.00034646,7]
[393804661,1763009447023,-500.0,0.00034646,7]
[393804662,1763009447033,-500.0,0.00034646,7]
[393804663,1763009447042,-150.35372728,0.00034646,7]
[393804667,1763009519577,1085.13,0.00036992,120]
[393804668,1763009519801,1085.13,0.00036992,120]
[393804669,1763009520031,1085.13,0.00036992,120]
[393804670,1763009520263,1085.13,0.00036992,120]
[393804671,1763009520508,1085.13,0.00036992,120]
[393804672,1763009520771,1085.13,0.00036992,120]
[393804673,1763009520999,1085.13,0.00036992,120]
[393804674,1763009521226,1085.13,0.00036992,120]
[393804675,1763009521464,1085.13,0.00036992,120]
[393804676,1763009521717,1085.13,0.00036992,120]
[393804677,1763009521980,1085.13,0.00036992,120]
[393804678,1763009522220,1085.13,0.00036992,120]
[393804679,1763009522447,1085.13,0.00036992,120]
[393804680,1763009522709,1085.13,0.00036992,120]
[393804681,1763009522974,1085.13,0.00036992,120]
[393804682,1763009523263,1085.13,0.00036992,120]
[393804683,1763009523449,1085.13,0.00036992,120]
[393804684,1763009523699,1085.13,0.00036992,120]
[393804685,1763009524057,1085.13,0.00036992,120]
[393804686,1763009524355,1085.13,0.00036992,120]
[393804687,1763009524566,1085.13,0.00036992,120]
[393804688,1763009524808,1085.13,0.00036992,120]
[393804689,1763009525050,1085.13,0.00036992,120]
[393804690,1763009525587,1085.23317346,0.00036992,120]
[393804691,1763009535415,690.83,0.00036992,30]
[393804692,1763009936762,1055.9,0.00036992,120]
[393804694,1763010488540,1528.16,0.0002025,2]
[393804695,1763010532092,165.540225,0.00013699,2]
[393804697,1763010568247,-165.540225,0.00027397,2]
[393804698,1763010604160,300.0,0.000274,2]
[393804741,1763010631797,-203.01295096,0.00030694,2]
[393804742,1763010631807,-240.96972949,0.00031291,4]
[393804743,1763010631816,-61.70771666,0.00031427,4]
[393804744,1763010631829,-92.87217984,0.00031427,4]
[393804745,1763010631839,-274.31724534,0.00031723,4]
[393804746,1763010631849,-136.85911354,0.00031959,4]
[393804747,1763010631871,-120.05782408,0.00031959,4]
[393804748,1763010631880,-194.98160444,0.00032664,2]
[393804749,1763010631889,-208.18719512,0.00032664,2]
[393804750,1763010631898,-254.16566364,0.00033036,2]
[393804751,1763010631908,-212.987624,0.00033236,2]
[393804752,1763010631918,-350.61592111,0.00033247,2]
[393804753,1763010631927,-65.71676604,0.00033355,2]
[393804754,1763010631942,-262.43703175,0.00033355,2]
[393804755,1763010631952,-328.85268074,0.00033806,2]
[393804757,1763010631961,-159.281562,0.00033908,2]
[393804758,1763010632115,-1206.76491664,0.0003399,2]
[393804759,1763010632132,-1436.6330137,0.00034485,2]
[393804760,1763010632152,-209.40437684,0.00034526,2]
[393804761,1763010632164,-376.0,0.00034536,2]
[393804762,1763010632174,-500.0,0.00034546,7]
[393804763,1763010632183,-212.81757348,0.00034546,7]
[393804842,1763010646029,-264.48633501,0.00032877,120]
[393804843,1763010646045,-135.79754503,0.00032877,120]
[393804844,1763010646058,-239.37800259,0.00034537,10]
[393804845,1763010646183,-342.55454446,0.00034537,10]
[393804847,1763011097816,13926.0,0.0002,2]
[393804855,1763011518199,3148.57840227,0.00036994,120]
[393804915,1763011685459,8984.7059013,0.000125,2]
[393804917,1763011691979,1011.86757517,0.00015,2]
[393804921,1763011703379,2666.89428281,0.00017,2]
[393804924,1763011707453,590.85810325,0.000149,2]
[393804929,1763011761117,-150.0,0.00025376,2]
[393804930,1763011761137,-248.26172849,0.00027376,2]
[393804974,1763011831974,-374.36221427,0.00030103,2]
[393804976,1763011831984,-157.452165,0.00032999,120]
[393804978,1763011831992,-957.75534248,0.00034386,2]
[393804980,1763011832002,-151.0,0.00034426,2]
[393804982,1763011832011,-151.0,0.00034426,2]
[393804984,1763011832020,-151.0,0.00034426,2]
[393804986,1763011832029,-151.0,0.00034426,2]
[393804988,1763011832038,-151.0,0.00034426,2]
[393804990,1763011832047,-151.0,0.00034426,2]
[393804992,1763011832057,-151.0,0.00034426,2]
[393804996,1763011832066,-151.0,0.00034426,2]
[393805000,1763011832075,-151.0,0.00034426,2]
[393805002,1763011832084,-209.40437684,0.00034426,2]
[393805004,1763011832093,-151.0,0.00034426,2]
[393805006,1763011832102,-151.0,0.00034426,2]
[393805008,1763011832111,-2810.43,0.00034437,10]
[393805010,1763011832120,-500.0,0.00034446,7]
[393805011,1763011832129,-500.0,0.00034446,7]
[393805013,1763011832139,-628.87829418,0.00034446,7]
[393805015,1763011832147,-500.0,0.00034446,7]
[393805017,1763011832157,-500.0,0.00034446,7]
[393805018,1763011832166,-549.77613932,0.00034446,7]
[393805020,1763011832175,-212.60927132,0.00034446,7]
[393805021,1763011832187,-258.22366975,0.00034446,7]
[393805066,1763011843035,-1583.47469793,0.00034437,10]
[393805067,1763011843206,-388.3,0.00034437,10]
[393805073,1763011846222,-370.24530207,0.00034437,10]
[393805074,1763011846232,-29.16705893,0.00034446,7]
[393805075,1763011846242,-500.0,0.00034446,7]
[393805076,1763011846253,-500.0,0.00034446,7]
[393805077,1763011846262,-202.09054235,0.00034446,7]
[393805078,1763011846288,-297.90945765,0.00034446,7]
[393805079,1763011846298,-500.0,0.00034446,7]
[393805080,1763011846308,-264.84105312,0.00034446,7]
[393805081,1763011846317,-500.0,0.00034446,7]
[393805082,1763011846328,-367.68314969,0.00034446,7]
[393805083,1763011846337,-500.0,0.00034446,7]
[393805084,1763011846346,-500.0,0.00034446,7]
[393805085,1763011846355,-500.0,0.00034446,7]
[393805086,1763011846364,-253.4292908,0.00034446,7]
[393805087,1763011846373,-500.0,0.00034446,7]
[393805088,1763011846382,-136.04600434,0.00034446,7]
[393805089,1763011846394,-363.95399566,0.00034446,7]
[393805090,1763011846403,-500.0,0.00034446,7]
[393805091,1763011846413,-500.0,0.00034446,7]
[393805092,1763011846423,-500.0,0.00034446,7]
[393805093,1763011846432,-500.0,0.00034446,7]
[393805094,1763011846441,-247.90643209,0.00034446,7]
[393805095,1763011846451,-315.64950059,0.00034446,7]
[393805096,1763011846460,-500.0,0.00034446,7]
[393805097,1763011846469,-76.91703971,0.00034446,7]
[393805098,1763011846500,-423.08296029,0.00034446,7]
[393805099,1763011846510,-18.30636015,0.00034446,7]
[393805114,1763011968615,152.77428292,0.00036994,120]
[393805334,1763012504420,5000.0,0.00037015,20]
[393805429,1763012804125,-150.0,0.00030832,2]
[393805430,1763012804150,-589.05661775,0.00034305,2]
[393805475,1763012939778,317.01,0.0002,7]
[393805476,1763012997464,300.0,0.0002,2]
[393805477,1763013008838,300.0,0.0002,2]
[393805478,1763013020934,300.0,0.0002,2]
[393805533,1763013032237,-337.14153356,0.00034205,2]
[393805534,1763013032247,-906.36766644,0.00034335,10]
[393805615,1763013032849,300.0,0.0002,2]
[393805655,1763013038067,-1045.32233356,0.00034335,10]
[393805656,1763013038078,-1626.4,0.00034335,10]
[393805657,1763013038088,-1355.34,0.00034335,10]
[393805658,1763013038100,-500.0,0.00034344,7]
[393805659,1763013038111,-500.0,0.00034344,7]
[393805660,1763013038121,-95.93766644,0.00034344,7]
[393805661,1763013038134,-404.06233356,0.00034344,7]
[393805662,1763013038145,-640.21480592,0.00034344,7]
[393805663,1763013038155,-500.0,0.00034344,7]
[393805664,1763013038165,-500.0,0.00034344,7]
[393805665,1763013038175,-328.01851998,0.00034344,7]
[393805666,1763013038187,-199.52663914,0.00034344,7]
[393805667,1763013038197,-500.0,0.00034344,7]
[393805668,1763013038207,-151.0,0.00034344,31]
[393805669,1763013038217,-106.08232394,0.00034344,31]
[393805673,1763013040279,-4920.27666306,0.00034344,31]
[393805674,1763013040289,-5026.358987,0.00034344,31]
[393805675,1763013040299,-5026.358987,0.00034344,31]
[393805676,1763013040308,-5026.358987,0.00034344,31]
[393805677,1763013040318,-151.0,0.00034344,31]
[393805678,1763013040327,-151.0,0.00034344,31]
[393805679,1763013040337,-151.0,0.00034344,31]
[393805680,1763013040346,-151.0,0.00034344,31]
[393805681,1763013040355,-151.0,0.00034344,31]
[393805682,1763013040364,-151.0,0.00034344,31]
[393805683,1763013040373,-151.0,0.00034344,31]
[393805684,1763013040382,-171.339272,0.00034344,31]
[393805685,1763013040391,-151.0,0.00034344,31]
[393805686,1763013040401,-151.0,0.00034344,31]
[393805687,1763013040411,-12004.38906842,0.00034345,2]
[393805697,1763013043331,-1129.45,0.00034335,10]
[393805698,1763013043341,-41197.8910754,0.00034345,2]
[393805699,1763013043443,-226212.71754147,0.00034345,2]
[393805700,1763013043455,-874.47,0.00034345,2]
[393805708,1763013046331,-1349.9999975,0.00034345,2]
[393805709,1763013046392,-1267.15671184,0.00034345,2]
[393805710,1763013046403,-161350.23140881,0.00034345,2]
[393805711,1763013046415,-1872.11706706,0.00034345,2]
[393805712,1763013046458,-590.0,0.00034345,2]
[393805713,1763013046567,-1376.98691253,0.00034345,2]
[393805714,1763013061037,300.0,0.0002,2]
[393805715,1763013073201,300.0,0.0002,2]
[393805716,1763013107779,313.0676705,0.00029499,2]
[393805717,1763013116686,182.42,0.0002,2]
[393805725,1763013137372,775.43846162,0.00020643,2]
[393805741,1763013147897,-162.0,0.00020643,2]
[393805746,1763013151067,-101.2860349,0.00020643,2]
[393805747,1763013151090,-168.8109051,0.00020643,2]
[393805749,1763013154140,-153.33703227,0.00020643,2]
[393805750,1763013155554,-946.56384768,0.00020643,2]
[393805751,1763013158668,-623.67043046,0.00020643,2]
[393805752,1763013160148,-173.50902614,0.00020643,2]
[393805753,1763013161540,-116.18991742,0.00020643,2]
[393805754,1763013161562,-226.3417601,0.00020643,2]
[393805756,1763013163634,-176.0696009,0.00020643,2]
[393805780,1763013534771,157.452165,0.00030137,120]
[393805781,1763013582181,162.333479,0.00013699,2]
[393805783,1763013611671,-257.87907302,0.00020642,2]